fUST/lending_fUST_20240617
["ID","MTS","AMOUNT","RATE_DAILY","PERIOD"]
[329724873,1718614261640,-923.96,0.00016969,2]
[329724874,1718614261674,-723.1572802,0.00016969,2]
[329724875,1718614261693,-2195.59,0.00016969,2]
[329724876,1718614261721,-600.35472936,0.0001697,2]
[329724877,1718614261738,-1424.80454403,0.0001697,2]
[329724878,1718614261754,-25057.24301671,0.0001697,2]
[329724879,1718614261813,-997.51680281,0.0001697,2]
[329724880,1718614261829,-3115.74657002,0.0001697,2]
[329724881,1718614261860,-500.0,0.00017069,2]
[329724882,1718614261873,-1525.15927339,0.00017069,2]
[329724884,1718614311594,273.37336231,9.9e-05,2]
[329724885,1718614319828,273.37336231,9.9e-05,2]
[329724886,1718614329064,273.37336231,9.9e-05,2]
[329724887,1718614337348,273.37336231,9.9e-05,2]
[329724888,1718614345428,273.37336231,9.9e-05,2]
[329724889,1718614354293,273.37336231,9.9e-05,2]
[329724890,1718614362371,273.37336231,9.9e-05,2]
[329724891,1718614370769,273.37336231,9.9e-05,2]
[329724892,1718614371822,163.22,0.00010959,2]
[329724893,1718614378777,273.37336231,9.9e-05,2]
[329724894,1718614397925,3000.0,0.000225,30]
[329724895,1718614442344,544.68358019,9.9e-05,2]
[329724896,1718614448061,155.56115003,9.9e-05,2]
[329724897,1718614460235,542.39389913,9.9e-05,2]
[329724898,1718614480278,542.39389913,9.9e-05,2]
[329724899,1718614485452,14932.97595775,9.9e-05,2]
[329724900,1718614496238,542.39389913,9.9e-05,2]
[329724901,1718614514251,498.17599571,9.9e-05,2]
[329724902,1718614538320,542.39389913,9.9e-05,2]
[329724903,1718614558248,542.39389913,9.9e-05,2]
[329724904,1718614580287,542.39389913,9.9e-05,2]
[329724905,1718614596264,542.39389913,9.9e-05,2]
[329724906,1718614614275,542.39389913,9.9e-05,2]
[329724907,1718614632343,541.63880435,9.9e-05,2]
[329724908,1718614648305,542.26805,9.9e-05,2]
[329724909,1718614648870,1500.0,0.00022465,30]
[329724910,1718614649185,1500.0,0.00022493,30]
[329724911,1718614668315,542.26805,9.9e-05,2]
[329724912,1718614721640,841.87509793,9.999e-05,2]
[329724913,1718614758331,542.26805,9.9e-05,2]
[329724914,1718614778287,542.26805,9.9e-05,2]
[329724915,1718614801340,553.00455378,9.999e-05,2]
[329724916,1718614802288,542.26805,9.9e-05,2]
[329724917,1718614852783,542.39389913,9.9e-05,2]
[329724918,1718614865640,242.62254666,9.999e-05,2]
[329724919,1718614866777,542.14220087,9.9e-05,2]
[329724920,1718614874987,928.30231028,9.999e-05,2]
[329724921,1718614877895,272.79740364,9.999e-05,2]
[329724922,1718614888813,691.10553787,9.9e-05,2]
[329724923,1718614914669,195.29069047,9.999e-05,2]
[329724924,1718614953320,411.96770428,9.999e-05,2]
[329724925,1718614960150,1519.37525244,9.999e-05,2]
[329724926,1718614966671,660.6087999,9.999e-05,2]
[329724927,1718614995502,3000.0,0.000225,30]
[329724929,1718615226213,1500.0,0.00022465,30]
[329724930,1718615226474,1500.0,0.00022493,30]
[329724931,1718615247417,187.55493657,9.999e-05,2]
[329724932,1718615249322,841.87509793,9.999e-05,2]
[329724962,1718615332548,157.87577542,9.999e-05,2]
[329724963,1718615355660,687.03019163,9.999e-05,2]
[329724964,1718615370322,317.77738365,9.999e-05,2]
[329724965,1718615373577,1443.37252304,9.999e-05,2]
[329724966,1718615382047,282.75745015,9.999e-05,2]
[329724967,1718615385954,553.00455378,9.999e-05,2]
[329724968,1718615387306,182.19523758,9.999e-05,2]
[329724969,1718615392687,225.37037852,9.999e-05,2]
[329724970,1718615394449,693.20491377,9.999e-05,2]
[329724971,1718615398511,723.08700558,9.999e-05,2]
[329724972,1718615413828,1283.11032023,9.999e-05,2]
[329724973,1718615423980,272.79740364,9.999e-05,2]
[329725015,1718615439947,775.42538062,9.999e-05,2]
[329725017,1718615442019,-195.29069047,0.00015491,2]
[329725019,1718615442036,-1519.37525244,0.00015492,2]
[329725021,1718615442065,-841.87509793,0.00015493,2]
[329725022,1718615442077,-187.55493657,0.00015493,2]
[329725023,1718615442114,-2056.5682735,0.00015496,2]
[329725024,1718615442126,-1464.8061853,0.00015679,2]
[329725025,1718615442140,-251.58498336,0.00015725,2]
[329725067,1718615447591,-148.13376144,0.00015725,2]
[329725068,1718615447608,-170.27895571,0.00015862,2]
[329725076,1718615449273,-26.42924829,0.00015862,2]
[329725077,1718615449292,-577.55554035,0.00016742,2]
[329725083,1718615451164,-42.44446021,0.00016742,2]
[329725084,1718615451178,-205.5312875,0.000168,2]
[329725085,1718615451189,-205.5312875,0.000168,2]
[329725086,1718615451205,-144.79330688,0.00016866,2]
[329725087,1718615487298,660.6087999,9.999e-05,2]
[329725088,1718615590645,516.26688123,9.999e-05,2]
[329725089,1718615594636,3000.0,0.000225,30]
[329725091,1718615775359,524.87187844,9.999e-05,2]
[329725092,1718615844415,3000.0,0.0001385,2]
[329725093,1718615881182,195.29069047,9.999e-05,2]
[329725094,1718615896021,272.79740364,9.999e-05,2]
[329725095,1718615924847,841.87509793,9.999e-05,2]
[329725096,1718615926524,1500.0,0.00022465,30]
[329725097,1718615926843,1500.0,0.00022493,30]
[329725098,1718615981442,660.6087999,9.999e-05,2]
[329725099,1718615981793,6080.0557812,0.00013273,2]
[329725100,1718616013815,13744.8470117,0.00013699,2]
[329725101,1718616039225,516.26688123,9.999e-05,2]
[329725102,1718616173387,488.97719,0.00013699,2]
[329725104,1718616195592,3000.0,0.000225,30]
[329725105,1718616206395,24900.0,0.00013117,2]
[329725106,1718616240750,524.87187844,9.999e-05,2]
[329725107,1718616335130,272.79740364,9.999e-05,2]
[329725108,1718616338704,195.29069047,9.999e-05,2]
[329725109,1718616355042,841.87509793,9.999e-05,2]
[329725110,1718616367219,250.0,0.00013168,2]
[329725111,1718616370437,2484.4751255,0.00013699,2]
[329725112,1718616416647,325.0059958,0.00013699,2]
[329725113,1718616492836,27008.117137,0.00013201,2]
[329725114,1718616515219,981.46280564,0.00022465,30]
[329725135,1718616635445,-841.87509793,0.00014014,2]
[329725136,1718616635486,-163.95367974,0.00014015,2]
[329725137,1718616635502,-300.0,0.00014119,2]
[329725138,1718616635515,-660.36027857,0.0001412,2]
[329725139,1718616635526,-515.90441965,0.0001412,2]
[329725140,1718616635546,-242.97065468,0.0001412,2]
[329725141,1718616635568,-281.5826705,0.0001412,2]
[329725142,1718616635585,-194.80208537,0.0001412,2]
[329725143,1718616635606,-272.02197048,0.0001412,2]
[329725144,1718616635620,-3871.19863994,0.00014444,2]
[329725172,1718616641754,-341.51697593,0.00014444,2]
[329725173,1718616641768,-2410.81270733,0.00014444,2]
[329725174,1718616641781,-4547.13080584,0.00014444,2]
[329725176,1718616642225,-1661.72303914,0.00014444,2]
[329725179,1718616642250,-4131.2508142,0.00014444,2]
[329725180,1718616642265,-5006.34320603,0.00014444,2]
[329725219,1718616648792,-37345.2639524,0.00014444,2]
[329725235,1718616659415,-841.87509793,0.00014443,2]
[329725236,1718616659428,-4032.05156377,0.00014444,2]
[329725237,1718616659867,-119.79847316,0.00014444,2]
[329725239,1718616659880,-214.63737887,0.00015,2]
[329725241,1718616659897,-5359.96414797,0.00015435,2]
[329725244,1718616687835,155.01395126,9.999e-05,2]
[329725245,1718616738637,775.42538062,9.999e-05,2]
[329725246,1718616754875,751.21,0.00010959,2]
[329725247,1718616761775,530.76762554,9.999e-05,2]
[329725248,1718616766069,155.01395126,9.999e-05,2]
[329725250,1718616794379,3000.0,0.000225,30]
[329725251,1718616805106,187.55493657,9.999e-05,2]
[329725252,1718616813945,409.111011,0.00013989,2]
[329725253,1718616822304,155.01395126,9.999e-05,2]
[329725254,1718616825661,723.08700558,9.999e-05,2]
[329725255,1718616851315,208.58222204,9.999e-05,2]
[329725256,1718616860314,509.34451293,9.999e-05,2]
[329725257,1718616861220,225.37037852,9.999e-05,2]
[329725258,1718616874231,523.87515124,9.999e-05,2]
[329725259,1718616890254,262.4251377,0.00013652,2]
[329725260,1718617132737,3000.0,0.00013699,2]
[329725261,1718617224584,155.01395126,9.999e-05,2]
[329725262,1718617242726,553.00455378,9.999e-05,2]
[329725263,1718617245180,155.01395126,9.999e-05,2]
[329725264,1718617268654,155.01395126,9.999e-05,2]
[329725265,1718617283537,155.01395126,9.999e-05,2]
[329725266,1718617283937,723.08700558,9.999e-05,2]
[329725267,1718617295787,273.37336231,9.9e-05,2]
[329725268,1718617303868,273.37336231,9.9e-05,2]
[329725269,1718617313835,225.37037852,9.999e-05,2]
[329725270,1718617320088,273.37336231,9.9e-05,2]
[329725271,1718617325236,155.01395126,9.999e-05,2]
[329725272,1718617328817,273.37336231,9.9e-05,2]
[329725274,1718617337582,273.37336231,9.9e-05,2]
[329725275,1718617347593,273.37336231,9.9e-05,2]
[329725276,1718617356663,273.37336231,9.9e-05,2]
[329725277,1718617375611,300.50002499,9.9e-05,2]
[329725278,1718617387523,334.85310285,9.9e-05,2]
[329725279,1718617395126,3000.0,0.000225,30]
[329725280,1718617396914,24900.0,0.00013543,2]
[329725281,1718617438027,286.866713,0.00013919,2]
[329725282,1718617552391,1443.37252304,9.999e-05,2]
[329725283,1718617559827,492.56928922,9.999e-05,2]
[329725284,1718617566977,317.77738365,9.999e-05,2]
[329725285,1718617573965,208.58222204,9.999e-05,2]
[329725286,1718617592507,687.03019163,9.999e-05,2]
[329725316,1718617835332,-535.9027736,0.00014438,2]
[329725425,1718617849683,-2645.10006487,0.00014437,2]
[329725426,1718617849709,-1707.98105911,0.00014438,2]
[329725427,1718617849748,-375.43562402,0.00014442,2]
[329725431,1718617850300,-1111.59701229,0.00014442,2]
[329725432,1718617901001,155.01550155,9.999e-05,2]
[329725433,1718617902388,225.37037852,9.999e-05,2]
[329725434,1718617903323,155.01550155,9.999e-05,2]
[329725435,1718617905446,155.01550155,9.999e-05,2]
[329725436,1718617912540,155.01550155,9.999e-05,2]
[329725437,1718617915085,155.01550155,9.999e-05,2]
[329725438,1718617915588,524.87187844,9.999e-05,2]
[329725439,1718617917823,155.01550155,9.999e-05,2]
[329725440,1718617921858,775.42538062,9.999e-05,2]
[329725441,1718617926621,216.5221349,9.999e-05,2]
[329725442,1718617932892,155.01550155,9.999e-05,2]
[329725443,1718617940306,530.76762554,9.999e-05,2]
[329725444,1718617940544,723.08700558,9.999e-05,2]
[329725445,1718617941434,155.01395126,9.999e-05,2]
[329725446,1718617943739,155.01395126,9.999e-05,2]
[329725447,1718617949245,553.00455378,9.999e-05,2]
[329725448,1718617950013,155.01550155,9.999e-05,2]
[329725449,1718617950556,1976.78044713,9.999e-05,2]
[329725450,1718617951218,155.01550155,9.999e-05,2]
[329725451,1718617953400,155.01550155,9.999e-05,2]
[329725452,1718617955018,509.34451293,9.999e-05,2]
[329725453,1718617959925,286.13904165,9.998e-05,2]
[329725454,1718617961800,187.55493657,9.998e-05,2]
[329725455,1718617977877,225.744565,0.00013699,2]
[329725456,1718618024949,208.58222204,9.999e-05,2]
[329725458,1718618490375,24900.0,0.00013465,2]
[329725459,1718618594516,3000.0,0.000225,30]
[329725524,1718618947050,-420.38032881,0.00014431,2]
[329725527,1718618947611,-420.38032881,0.00014431,2]
[329725528,1718618949995,-420.38032881,0.00014431,2]
[329725529,1718618971714,-445.60314854,0.00014431,2]
[329725531,1718618971795,-165.40497449,0.00014431,2]
[329725594,1718619042875,-2645.10006487,0.0001443,2]
[329725596,1718619042939,-155.01395126,0.00014431,2]
[329725599,1718619042970,-157.76009837,0.00014478,2]
[329725638,1718619043868,-142.23990163,0.00014478,2]
[329725644,1718619043905,-190.51558693,0.00014479,2]
[329725645,1718619043922,-327.84464483,0.00014479,2]
[329725650,1718619043971,-223.25493361,0.00014479,2]
[329725653,1718619044020,-173.0470218,0.00014479,2]
[329725694,1718619044974,-63.70767598,0.00014479,2]
[329725701,1718619044989,-374.16567395,0.00014479,2]
[329725706,1718619045006,-136.28850214,0.00014479,2]
[329725711,1718619045025,-189.7960666,0.00014479,2]
[329725714,1718619045041,-12.65482162,0.00014479,2]
[329725718,1718619045082,-245.67064657,0.00014479,2]
[329725720,1718619045100,-237.26711472,0.00014479,2]
[329725722,1718619045115,-218.18475968,0.00014479,2]
[329725724,1718619045151,-67.6288444,0.00014479,2]
[329725726,1718619045168,-207.24870664,0.00014479,2]
[329725729,1718619045200,-164.30346596,0.0001448,2]
[329725732,1718619045226,-850.99692423,0.0001448,2]
[329725735,1718619045284,-225.7445667,0.00014528,2]
[329725737,1718619045318,-155.10884671,0.00014543,2]
[329725738,1718619045338,-155.0962726,0.00014543,2]
[329725740,1718619045363,-155.09978306,0.00014543,2]
[329725742,1718619045384,-155.11488069,0.00014543,2]
[329725745,1718619045408,-155.09045172,0.00014544,2]
[329725747,1718619045448,-3303.55848023,0.00015,2]
[329725750,1718619045478,-301.9858479,0.00015432,4]
[329725753,1718619045512,-164.63956456,0.00015433,2]
[329725754,1718619045532,-1442.14724322,0.00015433,2]
[329725756,1718619045552,-205.5312875,0.000155,2]
[329725758,1718619045564,-205.5312875,0.000155,2]
[329725759,1718619045575,-205.5312875,0.000155,2]
[329725761,1718619045604,-205.5312875,0.000155,2]
[329725763,1718619045627,-205.5312875,0.000155,2]
[329725765,1718619045681,-205.5312875,0.000155,2]
[329725767,1718619045695,-292.64536,0.000155,2]
[329725769,1718619045722,-205.5312875,0.000155,2]
[329725771,1718619045750,-204.7854595,0.000155,2]
[329725773,1718619045772,-205.5312875,0.000155,2]
[329725775,1718619045787,-205.5312875,0.000155,2]
[329725777,1718619045805,-205.5312875,0.000155,2]
[329725778,1718619045828,-205.5312875,0.000155,2]
[329725780,1718619045852,-205.5312875,0.000155,2]
[329725782,1718619045876,-205.5312875,0.000157,2]
[329725783,1718619045887,-205.5312875,0.000157,2]
[329725785,1718619045903,-204.8997095,0.000157,2]
[329725788,1718619045936,-205.5312875,0.000157,2]
[329725790,1718619045970,-307.1882834,0.000157,2]
[329725793,1718619045992,-205.5312875,0.000157,2]
[329725795,1718619046026,-205.5312875,0.000157,2]
[329725797,1718619046062,-205.5312875,0.000157,2]
[329725800,1718619046091,-205.5312875,0.000157,2]
[329725802,1718619046117,-205.5312875,0.000157,2]
[329725804,1718619046155,-420.0,0.00015926,2]
[329725807,1718619046184,-284.45233056,0.00016,2]
[329725809,1718619046211,-7048.56391731,0.00016089,2]
[329725811,1718619046256,-276.34227105,0.0001609,2]
[329725814,1718619046287,-1220.16700008,0.0001609,2]
[329725816,1718619046313,-15958.29506518,0.0001609,2]
[329725818,1718619046373,-292.7706602,0.0001619,2]
[329725820,1718619046411,-292.7706602,0.0001619,2]
[329725822,1718619046425,-292.7706602,0.0001619,2]
[329725824,1718619046450,-292.7706602,0.0001619,2]
[329725826,1718619046475,-292.7706602,0.0001619,2]
[329725828,1718619046499,-292.7706602,0.0001619,2]
[329725829,1718619046511,-292.7706602,0.0001619,2]
[329725831,1718619046528,-292.7706602,0.0001619,2]
[329725833,1718619046541,-292.7706602,0.0001619,2]
[329725835,1718619046559,-292.7706602,0.0001619,2]
[329725837,1718619046589,-292.7706602,0.0001619,2]
[329725838,1718619046607,-292.7706602,0.0001619,2]
[329725840,1718619046631,-292.7706602,0.0001619,2]
[329725842,1718619046660,-179.1063228,0.0001619,2]
[329725845,1718619046686,-278.9261283,0.00016254,2]
[329725847,1718619046711,-276.34227104,0.00016289,2]
[329725848,1718619046726,-515.96999276,0.00016435,2]
[329725851,1718619046752,-529.95916832,0.00016435,2]
[329725853,1718619046781,-837.97078992,0.00016435,2]
[329725855,1718619046798,-155.28672437,0.00016435,2]
[329725856,1718619046809,-155.84621864,0.00016435,2]
[329725858,1718619046824,-272.67145618,0.00016435,2]
[329725861,1718619046848,-155.38051362,0.00016435,2]
[329725862,1718619046861,-310.00155002,0.00016435,2]
[329725864,1718619046877,-155.56558196,0.00016435,2]
[329725865,1718619046893,-254.606817,0.00016435,2]
[329725867,1718619046918,-270.9835509,0.00016435,2]
[329725869,1718619046939,-6196.12442672,0.00016435,2]
[329725871,1718619046950,-228.80084748,0.00016435,2]
[329725873,1718619046963,-155.02790453,0.00016435,2]
[329725875,1718619046996,-524.42627506,0.00016435,2]
[329725877,1718619047016,-155.26701075,0.00016435,2]
[329725879,1718619047052,-241.59253422,0.00016435,2]
[329725881,1718619047076,-190.33967694,0.00016435,2]
[329725883,1718619047089,-815.3012707,0.00016435,2]
[329725885,1718619047104,-216.26722096,0.00016435,2]
[329725886,1718619047139,-309.96589545,0.00016435,2]
[329725888,1718619047151,-254.2211647,0.00016435,2]
[329725890,1718619047169,-532.28651366,0.00016435,2]
[329725891,1718619047190,-250.776016,0.00016435,2]
[329725893,1718619047206,-317.51355361,0.00016437,2]
[329725894,1718619047217,-43601.16012533,0.00016437,2]
[329725895,1718619047227,-500.0,0.00016438,2]
[329725896,1718619047239,-155.02170304,0.00016438,2]
[329725898,1718619047251,-500.0,0.00016438,2]
[329725899,1718619047261,-500.0,0.00016438,2]
[329725901,1718619047282,-500.0,0.00016438,2]
[329725903,1718619047302,-373.04265691,0.00016438,2]
[329725905,1718619047313,-500.0,0.00016438,2]
[329725906,1718619047332,-500.0,0.00016438,2]
[329725908,1718619047344,-500.0,0.00016438,2]
[329725911,1718619047386,-500.0,0.00016438,2]
[329725913,1718619047401,-500.0,0.00016438,2]
[329725915,1718619047431,-500.0,0.00016438,2]
[329725917,1718619047484,-616.34,0.00016438,2]
[329725918,1718619047510,-500.0,0.00016438,2]
[329725921,1718619047524,-500.0,0.00016438,2]
[329725923,1718619047538,-885.46,0.00016438,2]
[329725925,1718619047553,-2154.41,0.00016438,2]
[329725927,1718619047564,-3319.86,0.00016438,2]
[329725929,1718619047582,-676.94,0.00016438,2]
[329725931,1718619047618,-644.44,0.00016438,2]
[329725933,1718619047629,-500.0,0.00016438,2]
[329725936,1718619047642,-1199.69,0.00016438,2]
[329725937,1718619047656,-500.0,0.00016438,2]
[329725939,1718619047668,-832.22,0.00016438,2]
[329725940,1718619047679,-500.0,0.00016438,2]
[329725942,1718619047693,-500.0,0.00016438,2]
[329725945,1718619047734,-500.0,0.00016438,2]
[329725947,1718619047761,-500.0,0.00016438,2]
[329725949,1718619047778,-500.0,0.00016438,2]
[329725951,1718619047805,-164.59010048,0.00016438,2]
[329725953,1718619047820,-3294.31,0.00016438,2]
[329725955,1718619047832,-2228.82,0.00016438,2]
[329725957,1718619047843,-529.40373337,0.00016438,2]
[329725959,1718619047866,-500.0,0.00016438,2]
[329725961,1718619047879,-512.5,0.00016438,2]
[329725964,1718619047905,-3400.03,0.00016438,2]
[329725965,1718619047917,-4145.84,0.00016438,2]
[329725967,1718619047931,-276.34227104,0.00016488,2]
[329725969,1718619047960,-276.34227104,0.00016687,2]
[329725970,1718619047976,-620.00000003,0.000167,2]
[329725971,1718619047987,-500.0,0.00016712,2]
[329725972,1718619047999,-500.0,0.00016712,2]
[329725976,1718619048010,-500.0,0.00016712,2]
[329725979,1718619048021,-500.0,0.00016712,2]
[329725983,1718619048037,-500.0,0.00016712,2]
[329725986,1718619048060,-500.0,0.00016712,2]
[329725988,1718619048072,-500.0,0.00016712,2]
[329725991,1718619048086,-616.34,0.00016712,2]
[329725992,1718619048099,-500.0,0.00016712,2]
[329725997,1718619048120,-885.46,0.00016712,2]
[329726000,1718619048176,-2154.41,0.00016712,2]
[329726005,1718619048215,-3319.86,0.00016712,2]
[329726008,1718619048228,-676.94,0.00016712,2]
[329726012,1718619048241,-644.44,0.00016712,2]
[329726014,1718619048272,-500.0,0.00016712,2]
[329726017,1718619048295,-1199.69,0.00016712,2]
[329726021,1718619048327,-832.22,0.00016712,2]
[329726022,1718619048341,-500.0,0.00016712,2]
[329726025,1718619048354,-500.0,0.00016712,2]
[329726028,1718619048374,-500.0,0.00016712,2]
[329726031,1718619048393,-500.0,0.00016712,2]
[329726034,1718619048420,-3294.31,0.00016712,2]
[329726037,1718619048440,-2228.82,0.00016712,2]
[329726040,1718619048467,-500.0,0.00016712,2]
[329726042,1718619048493,-512.5,0.00016712,2]
[329726044,1718619048524,-3400.03,0.00016712,2]
[329726049,1718619048552,-4145.84,0.00016712,2]
[329726052,1718619048577,-155.19979924,0.00016863,2]
[329726055,1718619048588,-1199.31584995,0.00016866,2]
[329726056,1718619048599,-158.10242535,0.00016866,2]
[329726059,1718619048613,-282.61783521,0.00016866,2]
[329726062,1718619048625,-182.10635568,0.00016866,2]
[329726063,1718619048649,-692.86322699,0.00016866,2]
[329726071,1718619048696,-1282.61225383,0.00016866,2]
[329726073,1718619048725,-1518.43976838,0.00016866,2]
[329726075,1718619048737,-1511.86135028,0.00016868,2]
[329726078,1718619048758,-262.27225802,0.00016868,2]
[329726080,1718619048777,-242.51958672,0.00016868,2]
[329726082,1718619048810,-927.89292866,0.00016868,2]
[329726084,1718619048821,-159.16840036,0.00016868,2]
[329726085,1718619048872,-412.75231864,0.00016868,2]
[329726087,1718619048884,-11105.83397635,0.00016868,2]
[329726088,1718619048896,-276.34227104,0.00016886,2]
[329726090,1718619048911,-1034.08802046,0.00016986,15]
[329726092,1718619048925,-500.0,0.00016986,2]
[329726093,1718619048943,-500.0,0.00016986,2]
[329726096,1718619048961,-500.0,0.00016986,2]
[329726097,1718619048976,-500.0,0.00016986,2]
[329726099,1718619048989,-500.0,0.00016986,2]
[329726101,1718619049001,-500.0,0.00016986,2]
[329726102,1718619049012,-500.0,0.00016986,2]
[329726104,1718619049023,-616.34,0.00016986,2]
[329726106,1718619049037,-500.0,0.00016986,2]
[329726108,1718619049053,-885.46,0.00016986,2]
[329726109,1718619049075,-2154.41,0.00016986,2]
[329726111,1718619049090,-3319.86,0.00016986,2]
[329726113,1718619049122,-676.94,0.00016986,2]
[329726114,1718619049136,-644.44,0.00016986,2]
[329726116,1718619049148,-518.64615688,0.00016986,2]
[329726117,1718619049165,-1199.69,0.00016986,2]
[329726118,1718619049210,-832.22,0.00016986,2]
[329726121,1718619049243,-500.0,0.00016986,2]
[329726123,1718619049314,-500.0,0.00016986,2]
[329726124,1718619049335,-496.73171771,0.00016986,2]
[329726126,1718619049380,-500.0,0.00016986,2]
[329726127,1718619049393,-3294.31,0.00016986,2]
[329726128,1718619049405,-2228.82,0.00016986,2]
[329726130,1718619049418,-500.0,0.00016986,2]
[329726131,1718619049439,-512.5,0.00016986,2]
[329726134,1718619049468,-4145.84,0.00016986,2]
[329726135,1718619049490,-3400.03,0.00016986,2]
[329726137,1718619049511,-40438.01316782,0.00017,2]
[329726139,1718619049531,-1000.0,0.00017,7]
[329726141,1718619049553,-7317.21482302,0.00017069,2]
[329726143,1718619049569,-20000.0,0.00017071,2]
[329726145,1718619049585,-2339.22101435,0.000171,2]
[329726146,1718619049602,-500.0,0.0001726,2]
[329726148,1718619049618,-500.0,0.0001726,2]
[329726150,1718619049629,-500.0,0.0001726,2]
[329726152,1718619049645,-484.8013567,0.0001726,2]
[329726155,1718619049676,-500.0,0.0001726,2]
[329726157,1718619049709,-586.45403431,0.0001726,2]
[329726159,1718619049724,-500.0,0.0001726,2]
[329726162,1718619049737,-616.34,0.0001726,2]
[329726172,1718619049869,-500.0,0.0001726,2]
[329726174,1718619049886,-885.46,0.0001726,2]
[329726176,1718619049902,-2154.41,0.0001726,2]
[329726179,1718619049924,-3319.86,0.0001726,2]
[329726181,1718619049943,-676.94,0.0001726,2]
[329726183,1718619049955,-644.44,0.0001726,2]
[329726185,1718619049971,-1199.69,0.0001726,2]
[329726187,1718619049983,-832.22,0.0001726,2]
[329726189,1718619049996,-500.0,0.0001726,2]
[329726191,1718619050011,-500.0,0.0001726,2]
[329726193,1718619050025,-356.71933141,0.0001726,2]
[329726195,1718619050038,-3294.31,0.0001726,2]
[329726197,1718619050057,-2228.82,0.0001726,2]
[329726200,1718619050090,-500.0,0.0001726,2]
[329726202,1718619050105,-512.5,0.0001726,2]
[329726203,1718619050117,-4145.84,0.0001726,2]
[329726205,1718619050133,-3400.03,0.0001726,2]
[329726207,1718619050150,-500.0,0.00017534,2]
[329726209,1718619050164,-500.0,0.00017534,2]
[329726211,1718619050181,-503.12,0.00017534,2]
[329726213,1718619050197,-500.0,0.00017534,2]
[329726216,1718619050230,-616.34,0.00017534,2]
[329726218,1718619050260,-500.0,0.00017534,2]
[329726220,1718619050276,-885.46,0.00017534,2]
[329726222,1718619050315,-2154.41,0.00017534,2]
[329726224,1718619050331,-3319.86,0.00017534,2]
[329726226,1718619050343,-676.94,0.00017534,2]
[329726228,1718619050366,-644.44,0.00017534,2]
[329726230,1718619050432,-1199.69,0.00017534,2]
[329726231,1718619050446,-832.22,0.00017534,2]
[329726233,1718619050470,-301.38,0.00017534,2]
[329726234,1718619050496,-500.0,0.00017534,2]
[329726236,1718619050509,-3294.31,0.00017534,2]
[329726238,1718619050524,-2228.82,0.00017534,2]
[329726239,1718619050539,-512.5,0.00017534,2]
[329726241,1718619050580,-4145.84,0.00017534,2]
[329726243,1718619050601,-3400.03,0.00017534,2]
[329726245,1718619050625,-88888.0,0.00017708,2]
[329726246,1718619050638,-500.0,0.00017808,2]
[329726247,1718619050650,-500.0,0.00017808,2]
[329726248,1718619050664,-500.0,0.00017808,2]
[329726249,1718619050703,-616.34,0.00017808,2]
[329726251,1718619050725,-500.0,0.00017808,2]
[329726252,1718619050742,-885.46,0.00017808,2]
[329726253,1718619050761,-2154.41,0.00017808,2]
[329726254,1718619050790,-3319.86,0.00017808,2]
[329726255,1718619050807,-676.94,0.00017808,2]
[329726256,1718619050818,-644.44,0.00017808,2]
[329726257,1718619050828,-1199.69,0.00017808,2]
[329726258,1718619050839,-832.22,0.00017808,2]
[329726259,1718619050850,-500.0,0.00017808,2]
[329726260,1718619050872,-3294.31,0.00017808,2]
[329726261,1718619050893,-2228.82,0.00017808,2]
[329726262,1718619050928,-512.5,0.00017808,2]
[329726263,1718619050946,-4145.84,0.00017808,2]
[329726264,1718619050961,-3400.03,0.00017808,2]
[329726265,1718619050998,-160.54492292,0.0001783,2]
[329726266,1718619051010,-1220.16700001,0.0001792,2]
[329726267,1718619051023,-500.0,0.00018,2]
[329726268,1718619051040,-1305.69060426,0.00018,2]
[329726269,1718619051073,-825.23441337,0.00018,2]
[329726270,1718619051108,-476.97437791,0.00018,2]